fUSD/lending_fUSD_20260401
["ID","MTS","AMOUNT","RATE_DAILY","PERIOD"]
[419268024,1775075508609,-868.24358161,0.0004,120]
[419268025,1775075508618,-4464.99193245,0.0004,120]
[419268026,1775075508628,-200.0,0.0004,120]
[419268027,1775075508637,-872.71729028,0.0004,120]
[419268028,1775075508646,-439.52980043,0.0004,60]
[419268029,1775075508655,-27719.17496107,0.0004,120]
[419268030,1775075508664,-801.75426061,0.0004,120]
[419268031,1775075508674,-2577.03057553,0.0004,14]
[419268032,1775075508683,-32033.18486155,0.0004,7]
[419268033,1775075508693,-366.12762698,0.0004,3]
[419268034,1775075508702,-4529.62925402,0.0004,120]
[419268035,1775075508712,-467.33025537,0.0004,60]
[419268036,1775075508722,-30688.00525578,0.0004,2]
[419268037,1775075508732,-1100.60559447,0.0004,120]
[419268038,1775075508742,-21026.82962089,0.0004,120]
[419268039,1775075508752,-1003.84718544,0.0004,7]
[419268040,1775075508762,-816.5359143,0.0004,3]
[419268041,1775075508771,-2727.64508366,0.0004,120]
[419268042,1775075508781,-7730.48,0.0004,30]
[419268043,1775075508791,-9127.68,0.0004,30]
[419268044,1775075508801,-5000.0,0.0004,7]
[419268045,1775075508810,-9324.40122094,0.0004,120]
[419268046,1775075508819,-40097.3445995,0.0004,2]
[419268047,1775075508829,-7000.0,0.0004,20]
[419268048,1775075508838,-458.0,0.0004,120]
[419268049,1775075508848,-300.0,0.0004,5]
[419268050,1775075508858,-400.972497,0.0004,30]
[419268051,1775075508868,-316.0,0.0004,120]
[419268052,1775075508877,-180.6740516,0.0004,14]
[419268053,1775075508887,-500.0,0.0004,2]
[419268054,1775075508897,-500.0,0.0004,14]
[419268055,1775075508907,-895.44,0.0004,120]
[419268056,1775075508916,-35822.84,0.0004,30]
[419268057,1775075508926,-494.52662302,0.0004,30]
[419268058,1775075508935,-317.0,0.0004,14]
[419268059,1775075508944,-500.0,0.0004,30]
[419268060,1775075508954,-500.0,0.0004,120]
[419268061,1775075508964,-115000.0,0.0004,120]
[419268062,1775075508973,-1268.0,0.0004,120]
[419268063,1775075508983,-963.31646,0.0004,30]
[419268064,1775075508992,-13874.327083,0.0004,120]
[419268065,1775075509002,-999819.0,0.0004,7]
[419268066,1775075509011,-1000.0,0.0004,120]
[419268067,1775075509020,-200.0,0.0004,120]
[419268068,1775075509030,-181.0,0.0004,120]
[419268069,1775075509039,-181.0,0.0004,120]
[419268070,1775075509049,-181.0,0.0004,120]
[419268071,1775075509059,-1421.34675157,0.0004,120]
[419268072,1775075509068,-664.42010571,0.0004,30]
[419268073,1775075509079,-2370.78566443,0.0004,120]
[419268074,1775075509088,-3000.0,0.0004,120]
[419268075,1775075509098,-17625.20210598,0.0004,8]
[419268076,1775075509108,-3369.0,0.0004,30]
[419268077,1775075509119,-3000.0,0.0004,30]
[419268078,1775075509128,-3000.0,0.0004,30]
[419268079,1775075509138,-3000.0,0.0004,30]
[419268080,1775075509147,-1005.0,0.0004,30]
[419268081,1775075509156,-1071.0,0.0004,30]
[419268082,1775075509165,-1000.0,0.0004,30]
[419268083,1775075509174,-250.0,0.0004,7]
[419268084,1775075509185,-1302.12542083,0.0004,120]
[419268085,1775075509194,-571.63967031,0.0004,4]
[419268086,1775075509204,-30000.0,0.0004,60]
[419268087,1775075509213,-30000.0,0.0004,60]
[419268088,1775075509223,-30163.51427794,0.0004,60]
[419268089,1775075509233,-5065.18193479,0.0004,7]
[419268090,1775075509245,-150.0,0.0004,2]
[419268091,1775075509256,-238.43172978,0.0004,120]
[419268092,1775075509265,-2551.27910865,0.0004,120]
[419268093,1775075509275,-1609.66050242,0.0004,120]
[419268094,1775075509285,-448.30345004,0.0004,120]
[419268095,1775075509295,-2500.0,0.0004,120]
[419268096,1775075509305,-151.51,0.0004,2]
[419268097,1775075509315,-151.51,0.0004,2]
[419268098,1775075509325,-151.51,0.0004,2]
[419268099,1775075509336,-151.51,0.0004,2]
[419268100,1775075509347,-151.51,0.0004,2]
[419268101,1775075509357,-151.51,0.0004,2]
[419268102,1775075509369,-151.51,0.0004,2]
[419268103,1775075509379,-151.51,0.0004,2]
[419268104,1775075509390,-151.51,0.0004,2]
[419268105,1775075509400,-151.51,0.0004,2]
[419268106,1775075509412,-151.51,0.0004,2]
[419268107,1775075509423,-151.51,0.0004,2]
[419268108,1775075509434,-151.51,0.0004,2]
[419268109,1775075509444,-151.51,0.0004,2]
[419268110,1775075509454,-151.51,0.0004,2]
[419268111,1775075509464,-151.51,0.0004,2]
[419268112,1775075509474,-151.51,0.0004,2]
[419268113,1775075509485,-151.51,0.0004,2]
[419268114,1775075509495,-151.51,0.0004,2]
[419268115,1775075509507,-151.51,0.0004,2]
[419268116,1775075509516,-151.51,0.0004,2]
[419268117,1775075509527,-151.51,0.0004,2]
[419268118,1775075509536,-151.51,0.0004,2]
[419268119,1775075509546,-151.51,0.0004,2]
[419268120,1775075509556,-151.51,0.0004,2]
[419268121,1775075509566,-151.51,0.0004,2]
[419268122,1775075509578,-151.51,0.0004,2]
[419268123,1775075509587,-151.51,0.0004,2]
[419268124,1775075509597,-151.51,0.0004,2]
[419268125,1775075509607,-151.51,0.0004,2]
[419268126,1775075509616,-151.51,0.0004,2]
[419268127,1775075509626,-151.51,0.0004,2]
[419268128,1775075509635,-151.51,0.0004,2]
[419268129,1775075509646,-151.51,0.0004,2]
[419268130,1775075509656,-151.51,0.0004,2]
[419268131,1775075509666,-151.51,0.0004,2]
[419268132,1775075509676,-151.51,0.0004,2]
[419268133,1775075510030,-151.51,0.0004,2]
[419268134,1775075510047,-151.51,0.0004,2]
[419268135,1775075510056,-151.51,0.0004,2]
[419268136,1775075510066,-151.51,0.0004,2]
[419268137,1775075510075,-151.51,0.0004,2]
[419268138,1775075510084,-151.51,0.0004,2]
[419268139,1775075510094,-151.51,0.0004,2]
[419268140,1775075510104,-151.51,0.0004,2]
[419268141,1775075510113,-151.51,0.0004,2]
[419268142,1775075510123,-151.51,0.0004,2]
[419268143,1775075510132,-182.66,0.00040058,2]
[419268144,1775075510141,-150.0,0.00040165,2]
[419268145,1775075510151,-380.0,0.00040179,2]
[419268146,1775075510160,-1096.6,0.00040187,30]
[419268147,1775075510170,-963.31646,0.000402,30]
[419268148,1775075510179,-600.0,0.00040274,5]
[419268149,1775075510189,-4542.82155,0.000403,120]
[419268150,1775075510198,-432.0,0.00040345,30]
[419268151,1775075510208,-153.0,0.00040345,30]
[419268152,1775075510218,-985.0,0.00040345,30]
[419268153,1775075510227,-1327.0,0.00040345,30]
[419268154,1775075510236,-4030.0,0.00040345,30]
[419268155,1775075510245,-1211.0,0.00040345,30]
[419268156,1775075510255,-506.0,0.00040345,30]
[419268157,1775075510264,-963.31646,0.000404,30]
[419268158,1775075510273,-250.0,0.00040474,76]
[419268159,1775075510282,-29831.92999789,0.00040479,2]
[419268160,1775075510291,-1957.82232135,0.000405,120]
[419268161,1775075510301,-3000.0,0.000405,30]
[419268162,1775075510310,-3000.0,0.000405,30]
[419268163,1775075510319,-3000.0,0.000405,30]
[419268164,1775075510329,-2500.0,0.000405,120]
[419268165,1775075510338,-1400.0,0.00040501,2]
[419268166,1775075510348,-1400.0,0.00040501,2]
[419268167,1775075510357,-1283.0,0.00040501,2]
[419268168,1775075510366,-228.00033431,0.00040548,120]
[419268169,1775075510375,-414.11890778,0.00040593,2]
[419268170,1775075510385,-963.31646,0.000406,30]
[419268171,1775075510394,-33989.9489,0.000406,114]
[419268172,1775075510404,-632.05343054,0.0004063,60]
[419268173,1775075510413,-1179.20571629,0.00040691,120]
[419268174,1775075510423,-540977.93768272,0.000407,6]
[419268175,1775075510432,-152.0,0.00040701,11]
[419268176,1775075510441,-500.0,0.00040767,30]
[419268177,1775075510450,-500.0,0.00040767,30]
[419268178,1775075510460,-500.0,0.00040767,30]
[419268179,1775075510469,-257.04868628,0.000408,60]
[419268180,1775075510478,-963.31646,0.000408,30]
[419268181,1775075510487,-500.0,0.00040858,120]
[419268182,1775075510497,-10000.0,0.0004088,120]
[419268183,1775075510507,-10000.0,0.0004088,120]
[419268184,1775075510517,-151.0,0.00040885,60]
[419268185,1775075510527,-72448.52916294,0.000409,2]
[419268186,1775075510537,-153.0,0.000409,120]
[419268187,1775075510547,-500.0,0.000409,120]
[419268188,1775075510556,-285.40491141,0.000409,30]
[419268189,1775075510565,-243.0,0.0004093,30]
[419268190,1775075510576,-500.0,0.00040935,120]
[419268191,1775075510585,-146191.0,0.0004095,60]
[419268192,1775075510594,-498.05,0.00040956,120]
[419268193,1775075510604,-10000.0,0.00041,30]
[419268194,1775075510614,-152.0,0.00041,120]
[419268195,1775075510623,-7372.07543288,0.00041,30]
[419268196,1775075510632,-150.0,0.00041,120]
[419268197,1775075510642,-46278.27945362,0.00041,120]
[419268198,1775075510652,-2318.152568,0.00041,120]
[419268199,1775075510661,-808.199998,0.00041,30]
[419268200,1775075510671,-930.0,0.00041,30]
[419268201,1775075510680,-2672.3012727,0.00041,120]
[419268202,1775075510690,-4792.23354174,0.00041,120]
[419268203,1775075510699,-437.33776198,0.00041,5]
[419268204,1775075510709,-7126.81,0.00041,30]
[419268205,1775075510718,-6075.73,0.00041,45]
[419268206,1775075510727,-35822.84,0.00041,30]
[419268207,1775075510736,-963.31646,0.00041,30]
[419268208,1775075510746,-1278.72430431,0.00041,120]
[419268209,1775075510755,-500.0,0.00041,120]
[419268210,1775075510766,-3000.0,0.00041,30]
[419268211,1775075510775,-3000.0,0.00041,30]
[419268212,1775075510784,-3000.0,0.00041,30]
[419268213,1775075510794,-1000.0,0.00041,30]
[419268214,1775075510804,-1000.0,0.00041,30]
[419268215,1775075510814,-2500.0,0.00041,120]
[419268216,1775075510824,-172.0,0.00041,90]
[419268217,1775075510834,-1096.6,0.00041031,30]
[419268218,1775075510843,-500.0,0.00041041,30]
[419268219,1775075510852,-608.75,0.00041041,30]
[419268220,1775075510861,-162.0,0.00041055,11]
[419268221,1775075510870,-3368.4,0.00041068,120]
[419268222,1775075510880,-2929.5,0.00041068,120]
[419268223,1775075510889,-1730.4,0.00041068,120]
[419268224,1775075510899,-1234.62513371,0.00041068,120]
[419268225,1775075510908,-370.38754012,0.00041068,120]
[419268226,1775075510919,-158.73751719,0.00041068,120]
[419268227,1775075510928,-1466.83571392,0.00041071,120]
[419268228,1775075510938,-600.0,0.00041096,30]
[419268229,1775075510948,-600.0,0.00041096,30]
[419268230,1775075510959,-542.0,0.00041096,30]
[419268231,1775075510968,-2000.0,0.00041096,60]
[419268232,1775075510977,-2000.0,0.00041096,60]
[419268233,1775075510987,-2000.0,0.00041096,60]
[419268234,1775075510996,-2000.0,0.00041096,60]
[419268235,1775075511006,-2000.0,0.00041096,60]
[419268236,1775075511016,-2000.0,0.00041096,60]
[419268237,1775075511025,-2000.0,0.00041096,60]
[419268238,1775075511036,-2000.0,0.00041096,60]
[419268239,1775075511046,-2000.0,0.00041096,60]
[419268240,1775075511055,-2719.0,0.00041096,60]
[419268241,1775075511065,-856.0,0.00041096,120]
[419268242,1775075511075,-150.0,0.00041096,10]
[419268243,1775075511084,-2037.20340833,0.00041096,10]
[419268244,1775075511094,-1131.0,0.00041096,120]
[419268245,1775075511103,-1000.0,0.00041096,60]
[419268246,1775075511113,-681.0,0.00041096,60]
[419268247,1775075511122,-2000.0,0.00041096,120]
[419268248,1775075511131,-2000.0,0.00041096,120]
[419268249,1775075511140,-2000.0,0.00041096,120]
[419268250,1775075511149,-2000.0,0.00041096,120]
[419268251,1775075511158,-2000.0,0.00041096,120]
[419268252,1775075511167,-2000.0,0.00041096,120]
[419268253,1775075511176,-1404.0,0.00041096,120]
[419268254,1775075511185,-500.0,0.00041096,120]
[419268255,1775075511195,-250.0,0.00041096,120]
[419268256,1775075511205,-531.32186251,0.00041096,10]
[419268257,1775075511214,-273.09,0.00041096,120]
[419268258,1775075511223,-1004.34,0.00041096,120]
[419268259,1775075511233,-201.83,0.00041096,30]
[419268260,1775075511242,-2840.10023321,0.000411,120]
[419268261,1775075511251,-150.72040446,0.000411,60]
[419268262,1775075511260,-204.11110572,0.000411,60]
[419268263,1775075511270,-176.60912856,0.000411,120]
[419268264,1775075511279,-881.58320439,0.000411,120]
[419268265,1775075511289,-881.58320439,0.000411,120]
[419268266,1775075511299,-881.58320439,0.000411,120]
[419268267,1775075511308,-881.58320439,0.000411,120]
[419268268,1775075511317,-881.58320439,0.000411,120]
[419268269,1775075511326,-881.58320439,0.000411,120]
[419268270,1775075511335,-881.58320439,0.000411,120]
[419268271,1775075511344,-881.58320439,0.000411,120]
[419268272,1775075511353,-881.58320439,0.000411,120]
[419268273,1775075511362,-881.58320439,0.000411,120]
[419268274,1775075511371,-881.58320439,0.000411,120]
[419268275,1775075511380,-881.58320439,0.000411,120]
[419268276,1775075511392,-881.58320439,0.000411,120]
[419268277,1775075511403,-881.58320439,0.000411,120]
[419268278,1775075511412,-881.58320439,0.000411,120]
[419268279,1775075511421,-881.58320439,0.000411,120]
[419268280,1775075511430,-881.58320439,0.000411,120]
[419268281,1775075511439,-881.58320439,0.000411,120]
[419268282,1775075511448,-881.58320439,0.000411,120]
[419268283,1775075511457,-881.58,0.000411,120]
[419268284,1775075511466,-2057.0274769,0.000411,120]
[419268285,1775075511475,-2057.0274769,0.000411,120]
[419268286,1775075511485,-2057.0274769,0.000411,120]
[419268287,1775075511495,-2057.0274769,0.000411,120]
[419268288,1775075511504,-2057.0274769,0.000411,120]
[419268289,1775075511514,-2057.0274769,0.000411,120]
[419268290,1775075511523,-2057.0274769,0.000411,120]
[419268291,1775075511531,-2057.0274769,0.000411,120]
[419268292,1775075511541,-2057.0274769,0.000411,120]
[419268293,1775075511550,-2057.0274769,0.000411,120]
[419268294,1775075511559,-2057.0274769,0.000411,120]
[419268295,1775075511569,-2057.0274769,0.000411,120]
[419268296,1775075511578,-2057.0274769,0.000411,120]
[419268297,1775075511587,-2057.0274769,0.000411,120]
[419268298,1775075511598,-2057.0274769,0.000411,120]
[419268299,1775075511607,-2057.0274769,0.000411,120]
[419268300,1775075511616,-2057.0274769,0.000411,120]
[419268301,1775075511625,-2057.0274769,0.000411,120]
[419268302,1775075511635,-2057.0274769,0.000411,120]
[419268303,1775075511644,-2057.02,0.000411,120]
[419268304,1775075511654,-1470.95872811,0.000411,120]
[419268305,1775075511663,-1470.95872811,0.000411,120]
[419268306,1775075511673,-1470.95872811,0.000411,120]
[419268307,1775075511683,-1470.95872811,0.000411,120]
[419268308,1775075511693,-1470.95872811,0.000411,120]
[419268309,1775075511703,-1470.95872811,0.000411,120]
[419268310,1775075511712,-1470.95872811,0.000411,120]
[419268311,1775075511721,-1470.95872811,0.000411,120]
[419268312,1775075511731,-1470.95872811,0.000411,120]
[419268313,1775075511741,-1470.95872811,0.000411,120]
[419268314,1775075511750,-1470.95872811,0.000411,120]
[419268315,1775075511760,-1470.95872811,0.000411,120]
[419268316,1775075511769,-1470.95872811,0.000411,120]
[419268317,1775075511778,-1470.95872811,0.000411,120]
[419268318,1775075511787,-1470.95872811,0.000411,120]
[419268319,1775075511797,-1470.95872811,0.000411,120]
[419268320,1775075511806,-1470.95872811,0.000411,120]
[419268321,1775075511816,-1470.95872811,0.000411,120]
[419268322,1775075511830,-1470.95872811,0.000411,120]
[419268323,1775075511839,-1470.95,0.000411,120]
[419268324,1775075511850,-3432.23703225,0.000411,120]
[419268325,1775075511860,-3432.23703225,0.000411,120]
[419268326,1775075511870,-3432.23703225,0.000411,120]
[419268327,1775075511879,-3432.23703225,0.000411,120]
[419268328,1775075511890,-3432.23703225,0.000411,120]
[419268329,1775075511899,-3432.23703225,0.000411,120]
[419268330,1775075511910,-3432.23703225,0.000411,120]
[419268331,1775075511920,-3432.23703225,0.000411,120]
[419268332,1775075511929,-3432.23703225,0.000411,120]
[419268333,1775075511939,-3432.23703225,0.000411,120]
[419268334,1775075511950,-3432.23703225,0.000411,120]
[419268335,1775075511960,-3432.23703225,0.000411,120]
[419268336,1775075511969,-3432.23703225,0.000411,120]
[419268337,1775075511979,-3432.23703225,0.000411,120]
[419268338,1775075511989,-3432.23703225,0.000411,120]
[419268339,1775075511999,-3432.23703225,0.000411,120]
[419268340,1775075512009,-3432.23703225,0.000411,120]
[419268341,1775075512021,-3432.23703225,0.000411,120]
[419268342,1775075512030,-3432.23703225,0.000411,120]
[419268343,1775075512040,-3432.23,0.000411,120]
[419268344,1775075512049,-1449.18824867,0.000411,120]
[419268345,1775075512058,-1449.18824867,0.000411,120]
[419268346,1775075512066,-1449.18824867,0.000411,120]
[419268347,1775075512075,-1449.18824867,0.000411,120]
[419268348,1775075512085,-1449.18824867,0.000411,120]
[419268349,1775075512096,-1449.18824867,0.000411,120]
[419268350,1775075512105,-1449.18824867,0.000411,120]
[419268351,1775075512115,-1449.18824867,0.000411,120]
[419268352,1775075512124,-1449.18824867,0.000411,120]
[419268353,1775075512134,-1449.18824867,0.000411,120]
[419268354,1775075512143,-1449.18824867,0.000411,120]
[419268355,1775075512153,-1449.18824867,0.000411,120]
[419268356,1775075512164,-1449.18824867,0.000411,120]
[419268357,1775075512175,-1449.18824867,0.000411,120]
[419268358,1775075512185,-1449.18824867,0.000411,120]
[419268359,1775075512194,-1449.18824867,0.000411,120]
[419268360,1775075512206,-1449.18824867,0.000411,120]
[419268361,1775075512215,-1449.18824867,0.000411,120]
[419268362,1775075512224,-1449.18824867,0.000411,120]
[419268363,1775075512234,-1449.18,0.000411,120]
[419268364,1775075512243,-3381.43924689,0.000411,120]
[419268365,1775075512251,-3381.43924689,0.000411,120]
[419268366,1775075512260,-3381.43924689,0.000411,120]
[419268367,1775075512269,-3381.43924689,0.000411,120]
[419268368,1775075512278,-3381.43924689,0.000411,120]
[419268369,1775075512287,-3381.43924689,0.000411,120]
[419268370,1775075512296,-3381.43924689,0.000411,120]
[419268371,1775075512305,-3381.43924689,0.000411,120]
[419268372,1775075512314,-3381.43924689,0.000411,120]
[419268373,1775075512323,-3381.43924689,0.000411,120]
[419268374,1775075512332,-3381.43924689,0.000411,120]
[419268375,1775075512341,-3381.43924689,0.000411,120]
[419268376,1775075512353,-3381.43924689,0.000411,120]
[419268377,1775075512362,-3381.43924689,0.000411,120]
[419268378,1775075512371,-3381.43924689,0.000411,120]
[419268379,1775075512379,-3381.43924689,0.000411,120]
[419268380,1775075512388,-3381.43924689,0.000411,120]
[419268381,1775075512397,-3381.43924689,0.000411,120]
[419268382,1775075512406,-3381.43924689,0.000411,120]
[419268383,1775075512415,-3381.43,0.000411,120]
[419268384,1775075512426,-3000.0,0.0004111,120]
[419268385,1775075512435,-1408.0,0.0004111,120]
[419268386,1775075512444,-380.0,0.00041114,2]
[419268387,1775075512453,-1381.50010064,0.00041124,120]
[419268388,1775075512462,-868.24358161,0.000412,120]
[419268389,1775075512471,-4464.99193245,0.000412,120]
[419268390,1775075512480,-8274.6685793,0.000412,120]
[419268391,1775075512488,-5000000.0,0.0004123,120]
[419268392,1775075512497,-273.09,0.00041233,120]
[419268393,1775075512506,-500.0,0.00041315,30]
[419268394,1775075512515,-800.0,0.00041369,120]
[419268395,1775075512524,-800.0,0.00041369,120]
[419268396,1775075512533,-800.0,0.00041369,120]
[419268397,1775075512542,-800.0,0.00041369,120]
[419268398,1775075512552,-167.64776117,0.00041369,120]
[419268399,1775075512561,-2500.0,0.00041369,120]
[419268400,1775075512570,-2500.0,0.00041369,120]
[419268401,1775075512579,-1056.1460868,0.00041369,120]
[419268402,1775075512589,-856.0,0.0004137,120]
[419268403,1775075512598,-273.11,0.0004137,120]
[419268404,1775075512607,-1004.34,0.0004137,120]
[419268405,1775075512617,-1004.34,0.0004137,120]
[419268406,1775075512626,-775.0,0.000414,120]
[419268407,1775075512636,-344.8997051,0.0004143,2]
[419268408,1775075512646,-250.0,0.00041451,91]
[419268409,1775075512656,-150.0,0.00041452,120]
[419268410,1775075512666,-1097.61,0.00041452,120]
[419268411,1775075512677,-150.0,0.00041452,120]
[419268412,1775075512686,-529.67,0.00041452,120]
[419268413,1775075512695,-500.0,0.0004146,26]
[419268414,1775075512704,-500.0,0.0004146,26]
[419268415,1775075512713,-500.0,0.0004146,26]
[419268416,1775075512723,-500.0,0.0004146,26]
[419268417,1775075512732,-500.0,0.0004146,26]
[419268418,1775075512741,-500.0,0.0004146,26]
[419268419,1775075512750,-500.0,0.0004146,26]
[419268420,1775075512759,-500.0,0.0004146,26]
[419268421,1775075512768,-500.0,0.0004146,26]
[419268422,1775075512778,-500.0,0.0004146,26]
[419268423,1775075512787,-383.61,0.0004146,26]
[419268424,1775075512796,-2000.0,0.00041481,30]
[419268425,1775075512805,-2000.0,0.00041481,30]
[419268426,1775075512814,-2000.0,0.00041481,30]
[419268427,1775075512823,-2000.0,0.00041481,30]
[419268428,1775075512832,-2000.0,0.00041481,30]
[419268429,1775075512841,-2000.0,0.00041481,30]
[419268430,1775075512850,-2000.0,0.00041481,30]
[419268431,1775075512859,-1597.76,0.00041481,30]
[419268432,1775075512867,-1571.0,0.00041498,11]
[419268433,1775075512876,-150.0,0.000415,120]
[419268434,1775075512885,-367.08885199,0.000415,120]
[419268435,1775075512895,-3673.19725547,0.000415,2]
[419268436,1775075512903,-3000.0,0.000415,30]
[419268437,1775075512912,-3000.0,0.000415,30]
[419268438,1775075512922,-86048.81858969,0.000415,120]
[419268439,1775075512932,-2500.0,0.000415,120]
[419268440,1775075512942,-1571.0,0.00041522,11]
[419268441,1775075512951,-182.66,0.00041532,2]
[419268442,1775075512961,-300.0,0.0004158,120]
[419268443,1775075512971,-300.0,0.0004158,120]
[419268444,1775075512982,-150.0,0.0004158,120]
[419268445,1775075512992,-150.0,0.0004158,120]
[419268446,1775075513001,-500.0,0.00041589,30]
[419268447,1775075513012,-1300.0,0.0004161,2]
[419268448,1775075513021,-1300.0,0.0004161,2]
[419268449,1775075513031,-1294.0,0.0004161,2]
[419268450,1775075513042,-856.0,0.00041644,120]
[419268451,1775075513053,-250.0,0.00041644,10]
[419268452,1775075513062,-1004.34,0.00041644,120]
[419268453,1775075513072,-1004.34,0.00041644,120]
[419268454,1775075513082,-1738.27,0.00041652,30]
[419268455,1775075513091,-162.0,0.00041695,11]
[419268456,1775075513101,-250.0,0.00041764,91]
[419268457,1775075513110,-651.85,0.00041781,120]
[419268458,1775075513120,-153.0,0.000418,120]
[419268459,1775075513130,-285.24414067,0.000418,90]
[419268460,1775075513140,-1957.82232135,0.000418,120]
[419268461,1775075513150,-469.37119287,0.00041805,2]
[419268462,1775075513161,-162.0,0.00041815,11]
[419268463,1775075513171,-433.72,0.00041815,120]
[419268464,1775075513181,-500.0,0.00041858,120]
[419268465,1775075513191,-373.02,0.00041858,120]
[419268466,1775075513200,-569.87,0.00041858,120]
[419268467,1775075513210,-630.75,0.00041858,120]
[419268468,1775075513219,-267.52,0.00041858,120]
[419268469,1775075513228,-2610.35,0.00041858,120]
[419268470,1775075513237,-2583.42,0.00041858,120]
[419268471,1775075513246,-205.74,0.00041858,120]
[419268472,1775075513255,-2343.17,0.00041858,120]
[419268473,1775075513266,-322.93,0.00041858,120]
[419268474,1775075513275,-234.08,0.00041858,120]
[419268475,1775075513286,-393.18,0.00041858,120]
[419268476,1775075513297,-490.04,0.00041858,120]
[419268477,1775075513306,-2953.76,0.00041858,120]
[419268478,1775075513316,-2279.79,0.00041858,120]
[419268479,1775075513326,-2422.17,0.00041858,120]
[419268480,1775075513335,-2960.95,0.00041858,120]
[419268481,1775075513345,-2777.64,0.00041858,120]
[419268482,1775075513355,-1223.08,0.00041858,120]
[419268483,1775075513365,-500.0,0.00041863,30]
[419268484,1775075513376,-1096.6,0.00041875,30]
[419268485,1775075513386,-758.41071396,0.0004188,30]
[419268486,1775075513395,-2263.43307061,0.0004188,120]
[419268487,1775075513405,-151.0,0.00041885,60]
[419268488,1775075513414,-1747.0,0.00041888,120]
[419268489,1775075513424,-1747.0,0.00041888,120]
[419268490,1775075513434,-1747.0,0.00041898,120]
[419268491,1775075513443,-1747.0,0.00041898,120]
[419268492,1775075513452,-1747.0,0.00041898,120]
[419268493,1775075513462,-1750.03,0.00041898,120]
[419268494,1775075513471,-660.11359309,0.000419,120]
[419268495,1775075513480,-500.0,0.000419,120]
[419268496,1775075513490,-85000.0,0.000419,30]
[419268497,1775075513499,-1747.0,0.00041908,120]
[419268498,1775075513508,-1747.0,0.00041908,120]
[419268499,1775075513523,-1747.0,0.00041908,120]
[419268500,1775075513537,-1747.0,0.00041908,120]
[419268501,1775075513552,-856.0,0.00041918,120]
[419268502,1775075513564,-1004.34,0.00041918,120]
[419268503,1775075513575,-1004.34,0.00041918,120]
[419268504,1775075513588,-152.0,0.0004192,12]
[419268505,1775075513601,-265.60856615,0.00041974,30]
[419268506,1775075513615,-825.0,0.00041975,90]
[419268507,1775075513628,-154.76,0.00042,120]
[419268508,1775075513641,-574.0,0.00042,120]
[419268509,1775075513653,-1480.7216037,0.00042,120]
[419268510,1775075513666,-150.0,0.00042,120]
[419268511,1775075513679,-1349.72247467,0.00042,120]
[419268512,1775075513692,-233.10332915,0.00042,120]
[419268513,1775075513704,-2365.37878689,0.00042,120]
[419268514,1775075513717,-1000.00226667,0.00042,120]
[419268515,1775075513729,-192.23270852,0.00042,120]
[419268516,1775075513740,-242.59937179,0.00042,120]
[419268517,1775075513752,-353.59826231,0.00042,120]
[419268518,1775075513764,-6569.71647184,0.00042,120]
[419268519,1775075513777,-297.32647196,0.00042,120]
[419268520,1775075513790,-500.0,0.00042,2]
[419268521,1775075513804,-2130.46063142,0.00042,30]
[419268522,1775075513818,-340.54771564,0.00042,120]
[419268523,1775075513832,-173.12581826,0.00042,60]